{"text_format":"1","workbook":"xlsx","n_sheets":3,"sheets":["Лист1","Лист2","Лист3"],"not_rendered":{"charts":0,"images":0,"macros":1,"external_links":1,"defined_names":2,"comments":0,"pivot_tables":0},"unopened":[],"bounds":{"document_bytes":16777216,"sheet_cells":100000,"rows_first":2000,"rows_last":500,"rows_between":2000,"halvings":0,"cell_chars":16384,"cell_head_chars":4096},"cells_cut":0,"cells_raw":0,"read":"whole","date_system":"1900"}

{"sheet":"Лист1","index":0,"n_rows":35,"n_cols":10,"rows_kept":35,"cut":false,"hidden":false,"merged":[]}
["Критерии","Крит1","Крит2","Крит3","Крит4"]
["Значение 1","Высокая","Большой","Хорошо","Высокая"]
["Значение 2","Удовлеворительная","Средний","Удовлетворительное","Умеренная"]
["Значение 3","Низкая","Начальный","Отсутствует","Низкая"]
["Значение 4",null,"Отсутствует"]
[]
["БЫЛО"]
[null,"Крит1","Крит2","Крит3","Крит4"]
[1,"Низкая","Отсутствует","Хорошо","Высокая",null,"Низкая","Отсутствует","Хорошо","Высокая"]
[2,"Низкая","Большой","Хорошо","Высокая",null,"Низкая","Большой","Хорошо","Высокая"]
[3,"Высокая","Большой","Хорошо","Умеренная",null,"Высокая","Большой","Хорошо","Умеренная"]
[4,"Высокая","Большой","Отсутствует","Умеренная",null,"Высокая","Большой","Отсутствует","Умеренная"]
[5,"Высокая","Средний","Удовлетворительное","Умеренная",null,"Высокая","Средний","Удовлетворительное","Умеренная"]
[6,"Удовлеворительная","Средний","Удовлетворительное","Умеренная",null,"Удовлеворительная","Средний","Удовлетворительное","Умеренная"]
[7,"Удовлеворительная","Начальный","Удовлетворительное","Низкая",null,"Удовлеворительная","Начальный","Удовлетворительное","Низкая"]
["СТАЛО"]
[null,"Крит1","Крит2","Крит3","Крит4"]
[1,{"$f":"MATCH(B9,B$1:B$5,0)","v":4},{"$f":"MATCH(C9,C$1:C$5,0)","v":5},2,2]
[2,{"$f":"MATCH(B10,B$1:B$5,0)","v":4},2,2,2]
[3,{"$f":"MATCH(B11,B$1:B$5,0)","v":2},2,2,3]
[4,{"$f":"MATCH(B12,B$1:B$5,0)","v":2},2,4,3]
[5,{"$f":"MATCH(B13,B$1:B$5,0)","v":2},3,3,3]
[6,{"$f":"MATCH(B14,B$1:B$5,0)","v":3},3,3,3]
[7,{"$f":"MATCH(B15,B$1:B$5,0)","v":3},4,3,4]
[]
[]
[]
[null,"Крит1","Крит2","Крит3","Крит4"]
[1,4,5,2,2]
[2,4,2,2,2]
[3,2,2,2,3]
[4,2,2,4,3]
[5,2,3,3,3]
[6,3,3,3,3]
[7,3,4,3,4]

{"sheet":"Лист2","index":1,"n_rows":0,"n_cols":0,"rows_kept":0,"cut":false,"hidden":false,"merged":[]}

{"sheet":"Лист3","index":2,"n_rows":0,"n_cols":0,"rows_kept":0,"cut":false,"hidden":false,"merged":[]}